[Event "Titled Tuesday Blitz June 13 Early 2023"]
[White "Prem, Pranav"]
[Black "Itkis, Boris"]
[WhiteFideId "30901057"]
[BlackFideId "1209167"]
[WhiteElo "1970"]
[BlackElo "2219"]
[Result "0-1"]
[Round "4"]
[TimeControl "180+2"]
[Date "2023.06.13"]
[WhiteClock "0:00:00"]
[BlackClock "0:00:24"]
[Board "146"]

1. d4 {[%clk 0:03:00]}  d5 {[%clk 0:02:59]} 2. c4 {[%clk 0:03:00]}  e6 {[%clk 0:02:59]} 3. Nc3 {[%clk 0:03:00]}  Nf6 {[%clk 0:02:58]} 4. cxd5 {[%clk 0:03:00]}  exd5 {[%clk 0:02:58]} 5. Bg5 {[%clk 0:02:59]}  c6 {[%clk 0:02:59]} 6. Qc2 {[%clk 0:02:58]}  Bd6 {[%clk 0:02:59]} 7. e3 {[%clk 0:02:55]}  O-O {[%clk 0:02:59]} 8. Bd3 {[%clk 0:02:55]}  h6 {[%clk 0:02:59]} 9. Bh4 {[%clk 0:02:54]}  Re8 {[%clk 0:02:59]} 10. Nf3 {[%clk 0:02:43]}  Be6 {[%clk 0:02:59]} 11. h3 {[%clk 0:02:42]}  Nbd7 {[%clk 0:02:59]} 12. O-O-O {[%clk 0:02:24]}  a5 {[%clk 0:02:56]} 13. g4 {[%clk 0:02:25]}  a4 {[%clk 0:02:42]} 14. g5 {[%clk 0:02:17]}  hxg5 {[%clk 0:02:39]} 15. Nxg5 {[%clk 0:02:12]}  b5 {[%clk 0:02:35]} 16. Kb1 {[%clk 0:01:40]}  Nb6 {[%clk 0:02:28]} 17. e4 {[%clk 0:00:49]}  b4 {[%clk 0:02:23]} 18. e5 {[%clk 0:00:46]}  Be7 {[%clk 0:01:38]} 19. Nxe6 {[%clk 0:00:37]}  fxe6 {[%clk 0:01:29]} 20. exf6 {[%clk 0:00:36]}  Bxf6 {[%clk 0:01:10]} 21. Bxf6 {[%clk 0:00:36]}  Qxf6 {[%clk 0:01:11]} 22. Ne2 {[%clk 0:00:35]}  b3 {[%clk 0:01:05]} 23. Qxc6 {[%clk 0:00:24]}  bxa2+ {[%clk 0:01:03]} 24. Kxa2 {[%clk 0:00:18]}  a3 {[%clk 0:00:55]} 25. b3 {[%clk 0:00:18]}  Nc4 {[%clk 0:00:43]} 26. bxc4 {[%clk 0:00:16]}  Rec8 {[%clk 0:00:43]} 27. Qd6 {[%clk 0:00:05]}  dxc4 {[%clk 0:00:42]} 28. Be4 {[%clk 0:00:06]}  Rab8 {[%clk 0:00:38]} 29. Qxa3 {[%clk 0:00:04]}  Qxf2 {[%clk 0:00:33]} 30. Rhe1 {[%clk 0:00:04]}  c3 {[%clk 0:00:29]} 31. d5 {[%clk 0:00:03]}  Rb2+ {[%clk 0:00:26]} 32. Ka1 {[%clk 0:00:00]}  Rxe2 {[%clk 0:00:24]} 0-1


[Site "https://www.chess.com"]

[Event "Titled Tuesday Blitz June 13 Early 2023"]
[White "San Thit Lwin"]
[Black "MKlose11"]
[WhiteFideId "13001272"]
[WhiteElo "2232"]
[BlackElo "2531"]
[Result "0-1"]
[Round "4"]
[TimeControl "180+2"]
[Date "2023.06.13"]
[WhiteClock "0:00:23"]
[BlackClock "0:01:24"]
[Board "148"]

1. Nf3 {[%clk 0:02:58]}  Nf6 {[%clk 0:02:59]} 2. c4 {[%clk 0:02:59]}  c5 {[%clk 0:02:58]} 3. Nc3 {[%clk 0:03:00]}  Nc6 {[%clk 0:02:58]} 4. d4 {[%clk 0:02:59]}  cxd4 {[%clk 0:02:58]} 5. Nxd4 {[%clk 0:03:00]}  d6 {[%clk 0:02:59]} 6. e4 {[%clk 0:03:00]}  g6 {[%clk 0:02:58]} 7. Be2 {[%clk 0:03:00]}  Bg7 {[%clk 0:02:58]} 8. Be3 {[%clk 0:03:00]}  O-O {[%clk 0:02:59]} 9. O-O {[%clk 0:02:57]}  Bd7 {[%clk 0:02:58]} 10. Qd2 {[%clk 0:02:57]}  Re8 {[%clk 0:02:57]} 11. f3 {[%clk 0:02:56]}  a5 {[%clk 0:02:54]} 12. Rac1 {[%clk 0:02:55]}  Nxd4 {[%clk 0:02:54]} 13. Bxd4 {[%clk 0:02:55]}  Bc6 {[%clk 0:02:55]} 14. Rfd1 {[%clk 0:02:55]}  Nd7 {[%clk 0:02:55]} 15. Bxg7 {[%clk 0:02:54]}  Kxg7 {[%clk 0:02:56]} 16. b3 {[%clk 0:02:42]}  Qb6+ {[%clk 0:02:55]} 17. Kh1 {[%clk 0:02:40]}  a4 {[%clk 0:02:53]} 18. Qb2 {[%clk 0:02:19]}  Kg8 {[%clk 0:02:43]} 19. b4 {[%clk 0:02:13]}  a3 {[%clk 0:02:35]} 20. Qb3 {[%clk 0:02:12]}  Nf6 {[%clk 0:02:33]} 21. Rb1 {[%clk 0:01:46]}  Rec8 {[%clk 0:02:25]} 22. Rd2 {[%clk 0:01:19]}  Bd7 {[%clk 0:02:23]} 23. Nd5 {[%clk 0:00:58]}  Nxd5 {[%clk 0:02:20]} 24. exd5 {[%clk 0:00:59]}  Qf2 {[%clk 0:02:06]} 25. Rbd1 {[%clk 0:00:54]}  Ba4 {[%clk 0:01:59]} 26. Qd3 {[%clk 0:00:47]}  Bxd1 {[%clk 0:01:58]} 27. Rxd1 {[%clk 0:00:47]}  Ra4 {[%clk 0:01:45]} 28. Bf1 {[%clk 0:00:43]}  Rxb4 {[%clk 0:01:41]} 29. Qxa3 {[%clk 0:00:43]}  Rb2 {[%clk 0:01:41]} 30. f4 {[%clk 0:00:37]}  Rxc4 {[%clk 0:01:38]} 31. Qa8+ {[%clk 0:00:34]}  Kg7 {[%clk 0:01:37]} 32. Qd8 {[%clk 0:00:25]}  Rxf4 {[%clk 0:01:26]} 33. h3 {[%clk 0:00:24]}  Qc2 {[%clk 0:01:24]} 34. Qxe7 {[%clk 0:00:24]}  Rxf1+ {[%clk 0:01:23]} 35. Rxf1 {[%clk 0:00:23]}  Qxg2# {[%clk 0:01:24]} 0-1


[Site "https://www.chess.com"]

[Event "Titled Tuesday Blitz June 13 Early 2023"]
[White "Bethke, Richard"]
[Black "Mouhamad, Joachim"]
[WhiteFideId "12959243"]
[BlackFideId "656410"]
[WhiteElo "2369"]
[BlackElo "2125"]
[Result "1-0"]
[Round "4"]
[TimeControl "180+2"]
[Date "2023.06.13"]
[WhiteClock "0:00:05"]
[BlackClock "0:00:00"]
[Board "149"]

1. e4 {[%clk 0:02:42]}  c5 {[%clk 0:02:59]} 2. Nf3 {[%clk 0:02:42]}  Nc6 {[%clk 0:03:00]} 3. d4 {[%clk 0:02:40]}  cxd4 {[%clk 0:03:00]} 4. Nxd4 {[%clk 0:02:41]}  Nf6 {[%clk 0:03:00]} 5. Nc3 {[%clk 0:02:41]}  d6 {[%clk 0:03:01]} 6. Bg5 {[%clk 0:02:41]}  e6 {[%clk 0:03:00]} 7. Qd2 {[%clk 0:02:41]}  a6 {[%clk 0:03:00]} 8. O-O-O {[%clk 0:02:39]}  Bd7 {[%clk 0:03:00]} 9. f4 {[%clk 0:02:29]}  Be7 {[%clk 0:03:01]} 10. Bxf6 {[%clk 0:02:19]}  Bxf6 {[%clk 0:02:56]} 11. Nf3 {[%clk 0:02:12]}  Be7 {[%clk 0:02:50]} 12. g4 {[%clk 0:02:08]}  b5 {[%clk 0:02:50]} 13. Bg2 {[%clk 0:01:55]}  b4 {[%clk 0:02:48]} 14. Ne2 {[%clk 0:01:45]}  Rc8 {[%clk 0:02:38]} 15. Kb1 {[%clk 0:01:37]}  a5 {[%clk 0:02:37]} 16. Ned4 {[%clk 0:01:29]}  Qb6 {[%clk 0:02:30]} 17. e5 {[%clk 0:01:26]}  d5 {[%clk 0:02:28]} 18. f5 {[%clk 0:01:14]}  a4 {[%clk 0:02:18]} 19. Rhf1 {[%clk 0:01:01]}  O-O {[%clk 0:02:14]} 20. f6 {[%clk 0:00:44]}  gxf6 {[%clk 0:02:14]} 21. Qh6 {[%clk 0:00:43]}  fxe5 {[%clk 0:02:13]} 22. Ng5 {[%clk 0:00:42]}  Bxg5 {[%clk 0:02:01]} 23. Qxg5+ {[%clk 0:00:40]}  Kh8 {[%clk 0:02:01]} 24. Qf6+ {[%clk 0:00:34]}  Kg8 {[%clk 0:02:02]} 25. Nf5 {[%clk 0:00:34]}  exf5 {[%clk 0:01:58]} 26. gxf5 {[%clk 0:00:34]}  b3 {[%clk 0:01:44]} 27. Be4 {[%clk 0:00:25]}  Ne7 {[%clk 0:00:46]} 28. Qxe7 {[%clk 0:00:19]}  dxe4 {[%clk 0:00:30]} 29. cxb3 {[%clk 0:00:13]}  axb3 {[%clk 0:00:19]} 30. Qxd7 {[%clk 0:00:04]}  Qc5 {[%clk 0:00:08]} 31. Rg1+ {[%clk 0:00:03]}  Kh8 {[%clk 0:00:07]} 32. Rc1 {[%clk 0:00:03]}  bxa2+ {[%clk 0:00:05]} 33. Ka1 {[%clk 0:00:02]}  Qxc1+ {[%clk 0:00:05]} 34. Rxc1 {[%clk 0:00:03]}  Rxc1+ {[%clk 0:00:05]} 35. Kxa2 {[%clk 0:00:04]}  Ra8+ {[%clk 0:00:02]} 36. Kb3 {[%clk 0:00:04]}  Rcc8 {[%clk 0:00:02]} 37. Qd5 {[%clk 0:00:04]}  f6 {[%clk 0:00:02]} 38. Qd6 {[%clk 0:00:02]}  Rab8+ {[%clk 0:00:02]} 39. Ka2 {[%clk 0:00:02]}  Rf8 {[%clk 0:00:03]} 40. b4 {[%clk 0:00:02]}  e3 {[%clk 0:00:03]} 41. Kb3 {[%clk 0:00:02]}  e2 {[%clk 0:00:02]} 42. Qd2 {[%clk 0:00:03]}  Rfd8 {[%clk 0:00:01]} 43. Qxe2 {[%clk 0:00:03]}  Rd4 {[%clk 0:00:01]} 44. Qh5 {[%clk 0:00:01]}  Rbxb4+ {[%clk 0:00:02]} 45. Kc3 {[%clk 0:00:02]}  Rbc4+ {[%clk 0:00:03]} 46. Kb3 {[%clk 0:00:02]}  Rb4+ {[%clk 0:00:03]} 47. Kc2 {[%clk 0:00:03]}  Rb8 {[%clk 0:00:04]} 48. Qf7 {[%clk 0:00:02]}  Rc8+ {[%clk 0:00:04]} 49. Kb3 {[%clk 0:00:03]}  Rd6 {[%clk 0:00:04]} 50. Qe7 {[%clk 0:00:03]}  Rcd8 {[%clk 0:00:04]} 51. Kc4 {[%clk 0:00:03]}  Rd4+ {[%clk 0:00:05]} 52. Kb5 {[%clk 0:00:03]}  R4d5+ {[%clk 0:00:05]} 53. Kc6 {[%clk 0:00:03]}  R5d6+ {[%clk 0:00:05]} 54. Kc5 {[%clk 0:00:03]}  Rd5+ {[%clk 0:00:05]} 55. Kc4 {[%clk 0:00:04]}  R5d6 {[%clk 0:00:05]} 56. h4 {[%clk 0:00:03]}  Kg8 {[%clk 0:00:06]} 57. h5 {[%clk 0:00:03]}  R8d7 {[%clk 0:00:05]} 58. Qe8+ {[%clk 0:00:03]}  Kg7 {[%clk 0:00:05]} 59. Qb8 {[%clk 0:00:02]}  Kh6 {[%clk 0:00:06]} 60. Qf8+ {[%clk 0:00:02]}  Kxh5 {[%clk 0:00:06]} 61. Qg8 {[%clk 0:00:03]}  h6 {[%clk 0:00:06]} 62. Kc5 {[%clk 0:00:03]}  Rd5+ {[%clk 0:00:06]} 63. Kc4 {[%clk 0:00:03]}  Rd4+ {[%clk 0:00:06]} 64. Kc3 {[%clk 0:00:03]}  Kh4 {[%clk 0:00:05]} 65. Qg6 {[%clk 0:00:03]}  R7d6 {[%clk 0:00:04]} 66. Qxh6+ {[%clk 0:00:04]}  Kg4 {[%clk 0:00:04]} 67. Qg6+ {[%clk 0:00:04]}  Kf4 {[%clk 0:00:05]} 68. Kc2 {[%clk 0:00:04]}  e4 {[%clk 0:00:03]} 69. Qh6+ {[%clk 0:00:04]}  Ke5 {[%clk 0:00:04]} 70. Qh2+ {[%clk 0:00:04]}  Kxf5 {[%clk 0:00:04]} 71. Qh5+ {[%clk 0:00:05]}  Ke6 {[%clk 0:00:05]} 72. Qg4+ {[%clk 0:00:05]}  f5 {[%clk 0:00:05]} 73. Qg6+ {[%clk 0:00:05]}  Ke5 {[%clk 0:00:05]} 74. Qg5 {[%clk 0:00:06]}  Rc4+ {[%clk 0:00:04]} 75. Kb3 {[%clk 0:00:06]}  Rcc6 {[%clk 0:00:02]} 76. Qg3+ {[%clk 0:00:06]}  Kd5 {[%clk 0:00:03]} 77. Qf4 {[%clk 0:00:06]}  Rb6+ {[%clk 0:00:02]} 78. Kc3 {[%clk 0:00:07]}  Rdc6+ {[%clk 0:00:03]} 79. Kd2 {[%clk 0:00:07]}  Rb2+ {[%clk 0:00:03]} 80. Kd1 {[%clk 0:00:08]}  Rb1+ {[%clk 0:00:03]} 81. Kd2 {[%clk 0:00:07]}  Rbb6 {[%clk 0:00:01]} 82. Qxf5+ {[%clk 0:00:07]}  Kd4 {[%clk 0:00:02]} 83. Qf2+ {[%clk 0:00:07]}  Kc4 {[%clk 0:00:01]} 84. Ke3 {[%clk 0:00:07]}  Re6 {[%clk 0:00:01]} 85. Qc2+ {[%clk 0:00:07]}  Kb5 {[%clk 0:00:02]} 86. Qb3+ {[%clk 0:00:07]}  Ka6 {[%clk 0:00:02]} 87. Qa4+ {[%clk 0:00:07]}  Kb7 {[%clk 0:00:03]} 88. Qd7+ {[%clk 0:00:07]}  Ka6 {[%clk 0:00:04]} 89. Qc8+ {[%clk 0:00:07]}  Ka5 {[%clk 0:00:04]} 90. Kd4 {[%clk 0:00:07]}  Rb4+ {[%clk 0:00:04]} 91. Kc5 {[%clk 0:00:06]}  Rb5+ {[%clk 0:00:04]} 92. Kc4 {[%clk 0:00:07]}  Rb4+ {[%clk 0:00:02]} 93. Kc3 {[%clk 0:00:06]}  Reb6 {[%clk 0:00:00]} 94. Qa8+ {[%clk 0:00:05]} 1-0


[Site "https://www.chess.com"]

[Event "Titled Tuesday Blitz June 13 Early 2023"]
[White "Begunov, Konstantin"]
[Black "Peycheva, Gergana"]
[WhiteFideId "4118510"]
[BlackFideId "2916711"]
[WhiteElo "1993"]
[BlackElo "2216"]
[Result "1-0"]
[Round "4"]
[TimeControl "180+2"]
[Date "2023.06.13"]
[WhiteClock "0:00:06"]
[BlackClock "0:00:04"]
[Board "151"]

1. d4 {[%clk 0:02:57]}  d5 {[%clk 0:02:59]} 2. c4 {[%clk 0:02:57]}  dxc4 {[%clk 0:02:59]} 3. Nf3 {[%clk 0:02:57]}  Nf6 {[%clk 0:02:59]} 4. e3 {[%clk 0:02:57]}  b5 {[%clk 0:02:57]} 5. a4 {[%clk 0:02:56]}  b4 {[%clk 0:02:58]} 6. Bxc4 {[%clk 0:02:56]}  e6 {[%clk 0:02:58]} 7. O-O {[%clk 0:02:54]}  Kd7 {[%clk 0:02:59]} 8. e4 {[%clk 0:02:28]}  Ke8 {[%clk 0:02:57]} 9. Qe2 {[%clk 0:02:25]}  Bb7 {[%clk 0:02:54]} 10. Nbd2 {[%clk 0:02:17]}  Be7 {[%clk 0:02:54]} 11. Re1 {[%clk 0:02:11]}  Nbd7 {[%clk 0:02:54]} 12. e5 {[%clk 0:02:08]}  Nd5 {[%clk 0:02:53]} 13. Ne4 {[%clk 0:02:08]}  h6 {[%clk 0:02:42]} 14. Nfd2 {[%clk 0:01:55]}  Kf8 {[%clk 0:02:38]} 15. Nb3 {[%clk 0:01:54]}  a5 {[%clk 0:02:32]} 16. Qg4 {[%clk 0:01:29]}  Kg8 {[%clk 0:02:14]} 17. Bd3 {[%clk 0:01:14]}  Ba6 {[%clk 0:02:11]} 18. Bxa6 {[%clk 0:01:12]}  Rxa6 {[%clk 0:02:10]} 19. f4 {[%clk 0:01:05]}  Nf8 {[%clk 0:01:56]} 20. f5 {[%clk 0:01:01]}  exf5 {[%clk 0:01:52]} 21. Qxf5 {[%clk 0:01:02]}  Qd7 {[%clk 0:01:51]} 22. Qf1 {[%clk 0:01:00]}  Rg6 {[%clk 0:01:46]} 23. Nxa5 {[%clk 0:00:56]}  Nb6 {[%clk 0:01:40]} 24. Nb3 {[%clk 0:00:45]}  Nxa4 {[%clk 0:01:33]} 25. Be3 {[%clk 0:00:29]}  Qd5 {[%clk 0:01:28]} 26. Nbd2 {[%clk 0:00:20]}  Nb6 {[%clk 0:01:15]} 27. Ra7 {[%clk 0:00:20]}  Ne6 {[%clk 0:01:11]} 28. Qf3 {[%clk 0:00:17]}  Qd7 {[%clk 0:00:54]} 29. Kh1 {[%clk 0:00:17]}  Kh7 {[%clk 0:00:51]} 30. Qf5 {[%clk 0:00:14]}  Rf8 {[%clk 0:00:44]} 31. Nf3 {[%clk 0:00:13]}  Kg8 {[%clk 0:00:37]} 32. Qh5 {[%clk 0:00:12]}  Qd5 {[%clk 0:00:36]} 33. Nfd2 {[%clk 0:00:11]}  Ng5 {[%clk 0:00:28]} 34. Nxg5 {[%clk 0:00:09]}  Bxg5 {[%clk 0:00:28]} 35. Bxg5 {[%clk 0:00:09]}  Rxg5 {[%clk 0:00:29]} 36. Qe2 {[%clk 0:00:09]}  Qxd4 {[%clk 0:00:27]} 37. Rxc7 {[%clk 0:00:07]}  Qxb2 {[%clk 0:00:23]} 38. e6 {[%clk 0:00:08]}  fxe6 {[%clk 0:00:20]} 39. Qxe6+ {[%clk 0:00:08]}  Kh8 {[%clk 0:00:20]} 40. Qxb6 {[%clk 0:00:08]}  Qxd2 {[%clk 0:00:18]} 41. Rg1 {[%clk 0:00:08]}  Rf2 {[%clk 0:00:12]} 42. Rc8+ {[%clk 0:00:07]}  Kh7 {[%clk 0:00:12]} 43. Qb7 {[%clk 0:00:05]}  b3 {[%clk 0:00:09]} 44. Qa8 {[%clk 0:00:05]}  b2 {[%clk 0:00:06]} 45. Rh8+ {[%clk 0:00:06]}  Kg6 {[%clk 0:00:06]} 46. Qe8+ {[%clk 0:00:05]}  Rf7 {[%clk 0:00:07]} 47. Rf8 {[%clk 0:00:05]}  Rf5 {[%clk 0:00:06]} 48. Qe6+ {[%clk 0:00:05]}  R5f6 {[%clk 0:00:06]} 49. Qe4+ {[%clk 0:00:06]}  Kg5 {[%clk 0:00:04]} 50. Rxf7 {[%clk 0:00:05]}  Rxf7 {[%clk 0:00:04]} 51. h4+ {[%clk 0:00:05]}  Kh5 {[%clk 0:00:03]} 52. g4+ {[%clk 0:00:05]}  Kxh4 {[%clk 0:00:03]} 53. g5+ {[%clk 0:00:06]}  Kh5 {[%clk 0:00:03]} 54. Qg4+ {[%clk 0:00:05]}  Kg6 {[%clk 0:00:03]} 55. gxh6+ {[%clk 0:00:06]}  Kxh6 {[%clk 0:00:04]} 56. Qg6# {[%clk 0:00:06]} 1-0


[Site "https://www.chess.com"]

[Event "Titled Tuesday Blitz June 13 Early 2023"]
[White "Toncheva, Nadya"]
[Black "Xie, Bryan"]
[WhiteFideId "2924056"]
[BlackFideId "30941296"]
[WhiteElo "2101"]
[BlackElo "2033"]
[Result "1-0"]
[Round "4"]
[TimeControl "180+2"]
[Date "2023.06.13"]
[WhiteClock "0:01:38"]
[BlackClock "0:00:47"]
[Board "153"]

1. d4 {[%clk 0:03:00]}  Nf6 {[%clk 0:02:58]} 2. c4 {[%clk 0:03:00]}  e6 {[%clk 0:02:57]} 3. Nc3 {[%clk 0:03:01]}  Bb4 {[%clk 0:02:57]} 4. e3 {[%clk 0:03:01]}  O-O {[%clk 0:02:56]} 5. Ne2 {[%clk 0:03:02]}  b6 {[%clk 0:02:54]} 6. a3 {[%clk 0:03:03]}  Be7 {[%clk 0:02:54]} 7. Ng3 {[%clk 0:02:59]}  Bb7 {[%clk 0:02:54]} 8. e4 {[%clk 0:02:59]}  d5 {[%clk 0:02:54]} 9. e5 {[%clk 0:02:55]}  Ne4 {[%clk 0:02:55]} 10. Ngxe4 {[%clk 0:02:53]}  dxe4 {[%clk 0:02:56]} 11. Be3 {[%clk 0:02:52]}  c5 {[%clk 0:02:55]} 12. Be2 {[%clk 0:02:48]}  cxd4 {[%clk 0:02:54]} 13. Qxd4 {[%clk 0:02:47]}  Qxd4 {[%clk 0:02:39]} 14. Bxd4 {[%clk 0:02:48]}  Nc6 {[%clk 0:02:39]} 15. Be3 {[%clk 0:02:24]}  Nxe5 {[%clk 0:02:38]} 16. O-O {[%clk 0:02:17]}  Rfd8 {[%clk 0:02:33]} 17. Rfd1 {[%clk 0:02:13]}  Rxd1+ {[%clk 0:02:26]} 18. Rxd1 {[%clk 0:02:14]}  Rd8 {[%clk 0:02:26]} 19. Rxd8+ {[%clk 0:02:14]}  Bxd8 {[%clk 0:02:27]} 20. Kf1 {[%clk 0:02:13]}  f5 {[%clk 0:02:24]} 21. b3 {[%clk 0:02:07]}  Bf6 {[%clk 0:02:24]} 22. Nb5 {[%clk 0:02:06]}  Nc6 {[%clk 0:02:19]} 23. c5 {[%clk 0:01:47]}  e5 {[%clk 0:01:33]} 24. cxb6 {[%clk 0:01:44]}  f4 {[%clk 0:01:33]} 25. Bc4+ {[%clk 0:01:42]}  Kh8 {[%clk 0:01:30]} 26. Bc5 {[%clk 0:01:43]}  axb6 {[%clk 0:01:31]} 27. Bxb6 {[%clk 0:01:43]}  Nd4 {[%clk 0:01:26]} 28. Nd6 {[%clk 0:01:38]}  Ba8 {[%clk 0:00:48]} 29. Nf7+ {[%clk 0:01:37]}  Kg8 {[%clk 0:00:48]} 30. Nxe5+ {[%clk 0:01:38]}  Kf8 {[%clk 0:00:47]} 31. Bxd4 {[%clk 0:01:38]} 1-0


[Site "https://www.chess.com"]

[Event "Titled Tuesday Blitz June 13 Early 2023"]
[White "De La Villa Garcia, Jesus Maria"]
[Black "Cruz Mendez, Jean Marco"]
[WhiteFideId "2200040"]
[BlackFideId "3526402"]
[WhiteElo "2354"]
[BlackElo "2064"]
[Result "0-1"]
[Round "4"]
[TimeControl "180+2"]
[Date "2023.06.13"]
[WhiteClock "0:00:00"]
[BlackClock "0:01:13"]
[Board "159"]

1. c4 {[%clk 0:03:00]}  e5 {[%clk 0:02:59]} 2. Nc3 {[%clk 0:03:00]}  Nc6 {[%clk 0:02:59]} 3. Nf3 {[%clk 0:03:00]}  Nf6 {[%clk 0:02:59]} 4. g3 {[%clk 0:03:00]}  Bc5 {[%clk 0:02:56]} 5. Bg2 {[%clk 0:03:00]}  a6 {[%clk 0:02:57]} 6. O-O {[%clk 0:03:00]}  Ba7 {[%clk 0:02:58]} 7. a3 {[%clk 0:02:54]}  d6 {[%clk 0:02:56]} 8. b4 {[%clk 0:02:54]}  O-O {[%clk 0:02:57]} 9. d3 {[%clk 0:02:49]}  h6 {[%clk 0:02:56]} 10. Nd5 {[%clk 0:02:47]}  Nxd5 {[%clk 0:02:55]} 11. cxd5 {[%clk 0:02:47]}  Nd4 {[%clk 0:02:56]} 12. Bb2 {[%clk 0:02:41]}  Nxf3+ {[%clk 0:02:56]} 13. Bxf3 {[%clk 0:02:41]}  Bf5 {[%clk 0:02:55]} 14. Rc1 {[%clk 0:02:40]}  Qd7 {[%clk 0:02:54]} 15. d4 {[%clk 0:02:31]}  e4 {[%clk 0:02:52]} 16. Bg2 {[%clk 0:02:31]}  Rfe8 {[%clk 0:02:52]} 17. e3 {[%clk 0:02:30]}  Rac8 {[%clk 0:02:51]} 18. Qb3 {[%clk 0:02:27]}  Bh3 {[%clk 0:02:47]} 19. Rc2 {[%clk 0:02:25]}  Bxg2 {[%clk 0:02:46]} 20. Kxg2 {[%clk 0:02:25]}  Qg4 {[%clk 0:02:46]} 21. Rfc1 {[%clk 0:02:24]}  Bb8 {[%clk 0:02:41]} 22. b5 {[%clk 0:02:20]}  a5 {[%clk 0:02:15]} 23. a4 {[%clk 0:02:06]}  b6 {[%clk 0:02:15]} 24. Ba3 {[%clk 0:02:04]}  Rcd8 {[%clk 0:02:15]} 25. Qc4 {[%clk 0:01:56]}  h5 {[%clk 0:02:06]} 26. h4 {[%clk 0:01:51]}  f5 {[%clk 0:01:58]} 27. Qe2 {[%clk 0:01:44]}  Qg6 {[%clk 0:01:40]} 28. Rxc7 {[%clk 0:01:38]}  Bxc7 {[%clk 0:01:39]} 29. Rxc7 {[%clk 0:01:38]}  Rc8 {[%clk 0:01:40]} 30. Rc6 {[%clk 0:01:38]}  Rxc6 {[%clk 0:01:31]} 31. bxc6 {[%clk 0:01:38]}  f4 {[%clk 0:01:28]} 32. exf4 {[%clk 0:01:30]}  e3 {[%clk 0:01:29]} 33. fxe3 {[%clk 0:01:15]}  Qe4+ {[%clk 0:01:29]} 34. Qf3 {[%clk 0:00:49]}  Qc2+ {[%clk 0:01:29]} 35. Kh3 {[%clk 0:00:48]}  Qf5+ {[%clk 0:01:21]} 36. Kg2 {[%clk 0:00:43]}  Qd3 {[%clk 0:01:21]} 37. Bxd6 {[%clk 0:00:13]}  Rxe3 {[%clk 0:01:20]} 38. c7 {[%clk 0:00:08]}  Rxf3 {[%clk 0:01:15]} 39. c8=Q+ {[%clk 0:00:07]}  Kh7 {[%clk 0:01:15]} 40. Kh2 {[%clk 0:00:00]}  Rf2+ {[%clk 0:01:13]} 0-1


[Site "https://www.chess.com"]

[Event "Titled Tuesday Blitz June 13 Early 2023"]
[White "Slavin, Alexey"]
[Black "Tokman, Ariel"]
[WhiteFideId "24104388"]
[BlackFideId "117420"]
[WhiteElo "2264"]
[BlackElo "2263"]
[Result "0-1"]
[Round "4"]
[TimeControl "180+2"]
[Date "2023.06.13"]
[WhiteClock "0:00:56"]
[BlackClock "0:01:31"]
[Board "160"]

1. e4 {[%clk 0:02:58]}  e6 {[%clk 0:02:58]} 2. Nf3 {[%clk 0:02:58]}  d5 {[%clk 0:02:58]} 3. e5 {[%clk 0:02:58]}  c5 {[%clk 0:02:58]} 4. b4 {[%clk 0:02:59]}  b6 {[%clk 0:02:57]} 5. a3 {[%clk 0:02:57]}  Nc6 {[%clk 0:02:54]} 6. c3 {[%clk 0:02:57]}  a5 {[%clk 0:02:48]} 7. b5 {[%clk 0:02:57]}  Nce7 {[%clk 0:02:40]} 8. a4 {[%clk 0:02:54]}  h5 {[%clk 0:02:37]} 9. d4 {[%clk 0:02:53]}  Nf5 {[%clk 0:02:37]} 10. Bd3 {[%clk 0:02:52]}  Ngh6 {[%clk 0:02:35]} 11. h3 {[%clk 0:02:51]}  Be7 {[%clk 0:02:33]} 12. Na3 {[%clk 0:02:16]}  Bd7 {[%clk 0:02:31]} 13. Nc2 {[%clk 0:02:15]}  c4 {[%clk 0:02:29]} 14. Be2 {[%clk 0:02:14]}  f6 {[%clk 0:02:25]} 15. Ne3 {[%clk 0:02:13]}  g6 {[%clk 0:02:17]} 16. exf6 {[%clk 0:02:03]}  Bxf6 {[%clk 0:02:16]} 17. O-O {[%clk 0:02:01]}  O-O {[%clk 0:02:16]} 18. Nxf5 {[%clk 0:01:43]}  Nxf5 {[%clk 0:02:15]} 19. Bf4 {[%clk 0:01:40]}  Qe7 {[%clk 0:02:11]} 20. Be5 {[%clk 0:01:40]}  Nd6 {[%clk 0:01:57]} 21. Qc1 {[%clk 0:01:15]}  Ne4 {[%clk 0:01:47]} 22. Bd1 {[%clk 0:01:14]}  Bg7 {[%clk 0:01:38]} 23. Bc2 {[%clk 0:01:14]}  Nxc3 {[%clk 0:01:35]} 24. Bxg6 {[%clk 0:01:13]}  Ne2+ {[%clk 0:01:35]} 25. Kh1 {[%clk 0:01:12]}  Nxc1 {[%clk 0:01:36]} 26. Raxc1 {[%clk 0:01:11]}  Rxf3 {[%clk 0:01:34]} 27. gxf3 {[%clk 0:01:09]}  Bxe5 {[%clk 0:01:34]} 28. dxe5 {[%clk 0:01:09]}  Qh4 {[%clk 0:01:34]} 29. Kh2 {[%clk 0:01:07]}  Kh8 {[%clk 0:01:32]} 30. Rg1 {[%clk 0:01:00]}  Qf4+ {[%clk 0:01:32]} 31. Rg3 {[%clk 0:00:56]}  Qxc1 {[%clk 0:01:31]} 0-1


[Site "https://www.chess.com"]

[Event "Titled Tuesday Blitz June 13 Early 2023"]
[White "Gomes, Luiz Alexandre de Souza"]
[Black "drdaro"]
[WhiteFideId "2102790"]
[WhiteElo "2503"]
[BlackElo "2335"]
[Result "1-0"]
[Round "4"]
[TimeControl "180+2"]
[Date "2023.06.13"]
[WhiteClock "0:00:50"]
[BlackClock "0:00:00"]
[Board "162"]

1. e4 {[%clk 0:03:00]}  g6 {[%clk 0:02:54]} 2. d4 {[%clk 0:03:00]}  d6 {[%clk 0:02:54]} 3. Nf3 {[%clk 0:03:00]}  Nf6 {[%clk 0:02:53]} 4. Nc3 {[%clk 0:02:59]}  a6 {[%clk 0:02:53]} 5. h3 {[%clk 0:02:59]}  b5 {[%clk 0:02:51]} 6. a3 {[%clk 0:02:59]}  Bg7 {[%clk 0:02:43]} 7. Bd3 {[%clk 0:02:57]}  O-O {[%clk 0:02:41]} 8. O-O {[%clk 0:02:58]}  c5 {[%clk 0:02:38]} 9. dxc5 {[%clk 0:02:55]}  dxc5 {[%clk 0:02:39]} 10. e5 {[%clk 0:02:55]}  Nfd7 {[%clk 0:02:18]} 11. e6 {[%clk 0:02:55]}  fxe6 {[%clk 0:02:18]} 12. Qe2 {[%clk 0:02:53]}  Nf6 {[%clk 0:02:15]} 13. Rd1 {[%clk 0:02:50]}  Qc7 {[%clk 0:02:12]} 14. Ng5 {[%clk 0:02:50]}  e5 {[%clk 0:02:05]} 15. Be4 {[%clk 0:02:37]}  Nc6 {[%clk 0:02:03]} 16. Nd5 {[%clk 0:02:36]}  Nxd5 {[%clk 0:01:37]} 17. Bxd5+ {[%clk 0:02:34]}  Kh8 {[%clk 0:01:37]} 18. c3 {[%clk 0:02:27]}  Bb7 {[%clk 0:01:35]} 19. Ne6 {[%clk 0:02:23]}  Qb6 {[%clk 0:01:28]} 20. Be3 {[%clk 0:02:13]}  Nd4 {[%clk 0:01:14]} 21. cxd4 {[%clk 0:02:11]}  Bxd5 {[%clk 0:01:14]} 22. Nxf8 {[%clk 0:02:09]}  exd4 {[%clk 0:01:10]} 23. Nd7 {[%clk 0:01:53]}  Qc6 {[%clk 0:01:09]} 24. Nxc5 {[%clk 0:01:15]}  Qxc5 {[%clk 0:01:01]} 25. Rac1 {[%clk 0:01:15]}  Qb6 {[%clk 0:00:59]} 26. Bf4 {[%clk 0:01:01]}  Bc4 {[%clk 0:00:35]} 27. Qxe7 {[%clk 0:00:58]}  Qf6 {[%clk 0:00:05]} 28. Qxf6 {[%clk 0:00:57]}  Bxf6 {[%clk 0:00:00]} 29. Re1 {[%clk 0:00:50]} 1-0


[Site "https://www.chess.com"]